bitfinex-derivatives/quotes_BTCF0:USTF0_20241210
["timestamp","ask_amount","ask_price","bid_price","bid_amount"]
[1733818763757,0.051607,97001.0,97000.0,0.04433419]
[1733818763953,0.051607,97001.0,97000.0,0.04933419]
[1733818764354,0.051607,97001.0,97000.0,0.04075416]
[1733818764757,0.06191421,97001.0,97000.0,0.04075416]
[1733818764955,0.06291421,97001.0,97000.0,0.03875416]
[1733818766065,0.06191421,97001.0,97000.0,0.03175416]
[1733818766361,0.06491421,97001.0,97000.0,0.02975416]
[1733818767058,0.00308,97001.0,97000.0,0.02975416]
[1733818767661,0.00308,97001.0,97000.0,0.02675416]
[1733818768158,0.02021017,97008.0,97000.0,0.02675416]
[1733818768758,0.07173417,97008.0,97007.0,4e-05]
[1733818769063,0.051524,97008.0,97007.0,4e-05]
[1733818770254,0.051524,97008.0,97007.0,0.00204]
[1733818770459,0.051524,97008.0,97007.0,0.00304]
[1733818771464,0.051524,97008.0,97007.0,0.00204]
[1733818771657,0.051524,97008.0,97007.0,0.00304]
[1733818774357,0.051524,97008.0,97007.0,0.00204]
[1733818774558,0.051524,97008.0,97007.0,0.00304]
[1733818774765,0.051524,97008.0,97007.0,0.00104]
[1733818774966,0.051524,97008.0,97007.0,0.00304]
[1733818776367,0.412319,97018.0,97007.0,0.00104]
[1733818776564,0.412319,97018.0,97007.0,0.054564]
[1733818776866,0.051519,97018.0,97017.0,4e-05]
[1733818777655,0.15347551,97027.0,97017.0,4e-05]
[1733818778065,0.15347551,97027.0,97026.0,4e-05]
[1733818778266,0.051514,97027.0,97026.0,4e-05]
[1733818779362,0.051514,97027.0,97026.0,0.00304]
[1733818780367,0.051514,97027.0,97026.0,0.00404]
[1733818781776,0.051514,97027.0,97026.0,0.00104]
[1733818781960,0.051514,97027.0,97026.0,0.00404]
[1733818782365,0.051514,97027.0,97026.0,0.00104]
[1733818782569,0.051514,97027.0,97026.0,0.00404]
[1733818786366,0.17373606,97027.0,97026.0,0.00404]
[1733818786561,0.051514,97027.0,97026.0,0.00404]
[1733818786765,0.1744718,97027.0,97026.0,0.00404]
[1733818787368,0.17450878,97027.0,97026.0,0.00404]
[1733818787668,0.051514,97027.0,97026.0,0.00404]
[1733818787867,0.17450878,97027.0,97026.0,0.00404]
[1733818788178,0.17450878,97027.0,97026.0,0.00104]
[1733818788472,0.051514,97027.0,97026.0,0.00404]
[1733818789475,0.051514,97027.0,97026.0,4e-05]
[1733818789675,0.051514,97027.0,97026.0,0.00404]
[1733818789870,0.17459474,97027.0,97026.0,0.00404]
[1733818790269,0.051514,97027.0,97026.0,0.00404]
[1733818793272,0.05152,97014.0,97013.0,0.3608]
[1733818794172,0.0516,97014.0,97013.0,0.3608]
[1733818794875,0.0516,97014.0,97011.0,0.0633]
[1733818794876,0.051522,97012.0,97011.0,0.0633]
[1733818795177,0.14391932,97012.0,97011.0,0.0633]
[1733818795372,0.051522,97012.0,97011.0,0.0633]
[1733818795583,0.1439767,97012.0,97011.0,0.0633]
[1733818795878,0.1440567,97012.0,97011.0,0.0633]
[1733818796375,0.051602,97012.0,97011.0,0.0633]
[1733818796674,0.052602,97012.0,97011.0,0.0713]
[1733818797068,0.17575253,97012.0,97011.0,0.0713]
[1733818797269,0.052602,97012.0,97011.0,0.0713]
[1733818797670,0.052602,97012.0,97011.0,0.0403]
[1733818798680,0.052602,97012.0,97011.0,0.0393]
[1733818799378,0.051602,97012.0,97011.0,0.0323]
[1733818799574,0.051602,97012.0,97011.0,0.0363]
[1733818800177,0.051602,97012.0,97011.0,0.0353]
[1733818800386,0.051602,97012.0,97011.0,0.0393]
[1733818800882,0.051602,97012.0,97011.0,0.0383]
[1733818801885,0.051602,97012.0,97011.0,0.0323]
[1733818802085,0.051602,97012.0,97011.0,0.0383]
[1733818802569,0.051602,97012.0,97011.0,0.0373]
[1733818802772,0.051602,97012.0,97011.0,0.005]
[1733818803183,0.051602,97012.0,97011.0,0.002]
[1733818803385,0.20554016,97012.0,97011.0,0.006]
[1733818803584,0.56634016,97012.0,97011.0,0.006]
[1733818803880,0.412402,97012.0,97011.0,0.006]
[1733818804485,0.412402,97012.0,97000.0,0.02675416]
[1733818804486,0.46250102,97012.0,97000.0,0.02675416]
[1733818804780,0.051527,97001.0,97000.0,0.02675416]
[1733818804991,0.051607,97001.0,97000.0,0.02675416]
[1733818805879,0.051607,97001.0,97000.0,0.02875416]
[1733818806586,0.17490487,97001.0,97000.0,0.02875416]
[1733818806881,0.051607,97001.0,97000.0,0.02875416]
[1733818808879,0.051607,97001.0,97000.0,0.02675416]
[1733818809079,0.051607,97001.0,97000.0,0.02875416]
[1733818810287,0.10171529,97001.0,97000.0,0.02875416]
[1733818810987,0.10171529,97001.0,96967.0,0.051545]
[1733818810988,0.051534,96988.0,96971.0,0.24469982]
[1733818811192,0.412342,96973.0,96971.0,0.24469982]
[1733818811387,0.412342,96973.0,96969.0,0.27569982]
[1733818811388,0.051543,96971.0,96969.0,0.27569982]
[1733818811687,0.051543,96971.0,96969.0,0.23009461]
[1733818811883,8e-05,96970.0,96969.0,0.19140461]
[1733818812394,0.051548,96962.0,96961.0,0.00099]
[1733818813394,0.051628,96962.0,96961.0,0.00099]
[1733818813586,0.09222688,96967.0,96961.0,0.00099]
[1733818813781,0.09222688,96967.0,96966.0,0.3608]
[1733818813986,0.14377188,96967.0,96966.0,0.36084]
[1733818814184,0.051545,96967.0,96966.0,4e-05]
[1733818814993,0.051545,96967.0,96966.0,0.00304]
[1733818815586,0.10196151,96980.0,96966.0,0.01004]
[1733818815790,0.051542,96974.0,96966.0,0.01004]
[1733818815990,0.051543,96971.0,96966.0,0.01]
[1733818816288,0.051543,96971.0,96967.0,0.0316]
[1733818817695,0.052543,96971.0,96967.0,0.0316]
[1733818818191,0.052543,96971.0,96967.0,0.0346]
[1733818818503,0.001,96971.0,96967.0,0.0346]
[1733818818794,0.001,96971.0,96970.0,0.3608]
[1733818820092,0.051536,96985.0,96970.0,0.40591127]
[1733818820294,0.051531,96995.0,96984.0,0.3608]
[1733818820797,0.09222688,96999.0,96984.0,0.3608]
[1733818820985,0.09222688,96999.0,96986.0,0.051535]
[1733818821188,0.3608,97003.0,96998.0,4e-05]
[1733818821690,0.3608,97003.0,97000.0,4e-05]
[1733818822195,0.051524,97008.0,97000.0,4e-05]
[1733818822393,0.09222688,97014.0,97000.0,4e-05]
[1733818822588,0.05152,97016.0,97002.0,0.3608]
[1733818822790,0.09222688,97018.0,97012.0,4e-05]
[1733818822986,0.051521,97014.0,97012.0,4e-05]
[1733818823503,0.051521,97014.0,97012.0,0.00013859]
[1733818823890,0.051521,97014.0,97012.0,0.00113859]
[1733818823891,0.3668,97013.0,97012.0,0.00113859]
[1733818824991,0.3708,97013.0,97012.0,0.00113859]
[1733818831301,0.01,97013.0,97012.0,0.00113859]
[1733818833096,0.01,97013.0,97012.0,0.03373859]
[1733818835006,0.00010531,97020.0,97019.0,0.051518]
[1733818835302,0.00010531,97020.0,97019.0,0.412318]
[1733818835495,0.00010531,97020.0,97019.0,0.412358]
[1733818836302,0.00510531,97020.0,97019.0,0.412358]
[1733818837006,0.09222688,97039.0,97019.0,0.36184]
[1733818837304,0.09222688,97039.0,97028.0,0.051513]
[1733818837507,0.09222688,97037.0,97028.0,0.051513]
[1733818837701,0.10196151,97040.0,97028.0,0.051513]
[1733818837902,0.10196151,97040.0,97032.0,4e-05]
[1733818838499,0.00010421,97042.0,97032.0,4e-05]
[1733818838696,0.00010421,97042.0,97038.0,0.412307]
[1733818838907,0.00010421,97042.0,97041.0,4e-05]
[1733818840197,0.00010421,97042.0,97041.0,0.03174]
[1733818840603,0.3608,97065.0,97054.0,0.051499]
[1733818840804,0.3608,97065.0,97055.0,0.051498]
[1733818841009,0.3608,97065.0,97064.0,4e-05]
[1733818843818,0.3608,97065.0,97064.0,0.00104]
[1733818844298,0.09222688,97067.0,97064.0,0.00104]
[1733818844503,0.09222688,97067.0,97066.0,0.051493]
[1733818844811,0.09222688,97067.0,97066.0,0.051533]
[1733818845499,0.004,97067.0,97066.0,4e-05]
[1733818845705,0.004,97067.0,97066.0,0.051533]
[1733818846310,0.00010961,97070.0,97066.0,0.051533]
[1733818846516,0.003,97067.0,97066.0,0.051533]
[1733818846811,0.003,97067.0,97066.0,0.051493]
[1733818848813,0.00310961,97070.0,97066.0,0.051493]
[1733818849514,0.003,97067.0,97066.0,0.051493]
[1733818851310,0.00010961,97070.0,97066.0,0.051493]
[1733818851311,0.00310961,97070.0,97066.0,0.051493]
[1733818851508,0.00310961,97070.0,97068.0,0.051492]
[1733818851813,0.00310961,97070.0,97069.0,0.36084]
[1733818852013,0.00010961,97070.0,97069.0,0.36084]
[1733818852921,0.00410961,97070.0,97069.0,0.36084]
[1733818853604,0.084478,97095.0,97080.0,0.051485]
[1733818853808,0.084478,97095.0,97083.0,0.3608]
[1733818854009,0.084478,97095.0,97094.0,4e-05]
[1733818854817,0.088478,97095.0,97094.0,4e-05]
[1733818855017,0.09891001,97095.0,97094.0,4e-05]
[1733818855617,0.004,97095.0,97094.0,0.00104]
[1733818856308,0.004,97095.0,97094.0,0.00204]
[1733818856910,0.004,97095.0,97094.0,0.00104]
[1733818858311,0.01026955,97099.0,97094.0,4e-05]
[1733818858516,0.10010589,97100.0,97094.0,4e-05]
[1733818858827,0.10010589,97100.0,97099.0,4e-05]
[1733818859216,0.11049832,97100.0,97099.0,4e-05]
[1733818860517,0.10010589,97100.0,97099.0,0.051515]
[1733818861008,0.10010589,97100.0,97099.0,0.052515]
[1733818864321,0.10010589,97100.0,97099.0,0.00104]
[1733818865017,0.15158089,97100.0,97099.0,0.00104]
[1733818865222,0.15158089,97100.0,97093.0,0.3608]
[1733818865223,0.051476,97098.0,97093.0,0.3608]
[1733818865425,0.0312,97097.0,97093.0,0.3608]
[1733818865619,8e-05,97094.0,97093.0,0.3608]
[1733818867515,0.36088,97094.0,97076.0,0.051487]
[1733818867716,0.051488,97077.0,97067.0,0.051492]
[1733818868021,0.051488,97077.0,97065.0,0.0648]
[1733818868022,8e-05,97068.0,97065.0,0.0315]
[1733818868417,0.12232986,97076.0,97067.0,0.051492]
[1733818868620,0.12232986,97076.0,97068.0,0.051491]
[1733818868924,0.12232986,97076.0,97075.0,4e-05]
[1733818869119,0.0302,97076.0,97075.0,4e-05]
[1733818870120,0.12283557,97077.0,97075.0,4e-05]
[1733818870313,0.12283557,97076.0,97075.0,0.051528]
[1733818870512,0.15400962,97083.0,97075.0,0.051488]
[1733818870513,0.12283557,97078.0,97075.0,0.051488]
[1733818870917,0.12283557,97078.0,97067.0,0.01]
[1733818871118,0.09228051,97074.0,97073.0,0.051489]
[1733818871423,0.21512435,97078.0,97076.0,0.051488]
[1733818871617,0.09228878,97079.0,97077.0,0.0629]
[1733818871816,0.09228878,97078.0,97077.0,0.06294]
[1733818872016,0.21534641,97083.0,97077.0,0.06294]
[1733818872424,0.09228878,97083.0,97082.0,4e-05]
[1733818872720,0.09228878,97084.0,97082.0,4e-05]
[1733818872924,0.09228878,97083.0,97082.0,4e-05]
[1733818873119,0.09228878,97083.0,97081.0,0.3608]
[1733818873628,8e-05,97082.0,97081.0,0.3608]
[1733818874324,8e-05,97082.0,97081.0,0.40585624]
[1733818875925,8e-05,97082.0,97081.0,0.3608]
[1733818875926,0.09236878,97082.0,97081.0,0.3608]
[1733818876226,8e-05,97082.0,97081.0,0.3608]
[1733818879027,8e-05,97082.0,97081.0,0.40585468]
[1733818880226,0.09248856,97082.0,97081.0,0.40585468]
[1733818880938,8e-05,97082.0,97081.0,0.40585468]
[1733818881823,0.09256748,97082.0,97081.0,0.40585468]
[1733818883227,8e-05,97082.0,97081.0,0.40585468]
[1733818884130,0.09248748,97090.0,97088.0,0.051481]
[1733818884325,0.25411551,97100.0,97090.0,0.05148]
[1733818884326,0.09248748,97092.0,97090.0,0.05148]
[1733818884529,0.09248748,97092.0,97089.0,0.46815468]
[1733818884530,0.09248748,97093.0,97092.0,0.051479]
[1733818884730,0.09248748,97096.0,97094.0,0.051478]
[1733818884935,0.22316786,97100.0,97095.0,0.04505468]
[1733818885230,0.09247733,97099.0,97096.0,0.2602543]
[1733818885529,0.09247733,97099.0,97098.0,0.051476]
[1733818885926,0.10010589,97100.0,97098.0,0.23478045]
[1733818886327,0.10010589,97100.0,97099.0,0.04508985]
[1733818886724,0.10010589,97100.0,97099.0,4e-05]
[1733818888251,0.10010589,97100.0,97099.0,0.04508985]
[1733818888630,0.10010589,97100.0,97099.0,0.04608985]
[1733818892834,0.10010589,97100.0,97099.0,0.00104]
[1733818902534,0.10010589,97100.0,97099.0,0.04608876]
[1733818902737,0.10010589,97100.0,97099.0,0.00104]
[1733818902942,0.10010589,97100.0,97099.0,0.04608954]
[1733818903942,0.10010589,97100.0,97099.0,0.23016785]
[1733818904342,0.10010589,97100.0,97099.0,0.04608954]
[1733818904738,0.10010589,97100.0,97099.0,0.29203303]
[1733818905046,0.10010589,97100.0,97099.0,0.14088954]
[1733818905736,0.05010589,97100.0,97099.0,0.09592513]
[1733818905936,0.09240888,97112.0,97111.0,0.051469]
[1733818906239,0.09240888,97126.0,97124.0,0.051462]
[1733818906440,0.09240888,97127.0,97124.0,0.051462]
[1733818906632,0.09240888,97127.0,97125.0,4e-05]
[1733818906835,0.09240888,97127.0,97126.0,4e-05]
[1733818907439,0.09240888,97128.0,97126.0,4e-05]
[1733818907839,0.09240888,97128.0,97127.0,4e-05]
[1733818908932,0.15346197,97133.0,97127.0,0.00104]
[1733818908933,0.09240888,97129.0,97127.0,0.00104]
[1733818909336,0.09240888,97129.0,97128.0,4e-05]
[1733818910544,0.15346197,97133.0,97128.0,4e-05]
[1733818910948,0.20491897,97133.0,97132.0,4e-05]
[1733818911647,0.081857,97133.0,97132.0,4e-05]
[1733818912542,0.081857,97133.0,97132.0,0.00104]
[1733818918752,0.153532,97133.0,97132.0,0.00104]
[1733818918942,0.0304,97133.0,97132.0,0.00104]
[1733818921559,0.123132,97135.0,97132.0,0.00104]
[1733818921760,0.123132,97135.0,97132.0,0.36184]
[1733818921947,0.123132,97135.0,97134.0,4e-05]
[1733818922145,0.09232381,97135.0,97134.0,4e-05]
[1733818922454,0.09232381,97136.0,97134.0,4e-05]
[1733818922954,0.123132,97139.0,97134.0,4e-05]
[1733818923159,9.793e-05,97140.0,97134.0,0.051497]
[1733818923160,0.09231222,97135.0,97134.0,0.051497]
[1733818923456,0.09231222,97136.0,97134.0,0.052457]
[1733818923659,9.793e-05,97140.0,97134.0,0.052457]
[1733818923660,0.04231222,97137.0,97134.0,0.001]
[1733818923956,9.793e-05,97140.0,97139.0,0.051454]
[1733818924350,9.793e-05,97140.0,97139.0,0.051494]
[1733818924757,9.793e-05,97140.0,97139.0,0.28039965]
[1733818924951,9.793e-05,97140.0,97139.0,0.0966444]
[1733818925561,0.02047117,97173.0,97139.0,0.0966444]
[1733818925562,0.15400962,97162.0,97160.0,0.051443]
[1733818925762,0.15400962,97162.0,97161.0,0.3608]
[1733818925949,0.15400962,97162.0,97161.0,0.36084]
[1733818930649,0.051428,97189.0,97161.0,0.36084]
[1733818930854,0.18481192,97206.0,97161.0,0.36084]
[1733818930855,0.0322,97185.0,97180.0,0.051433]
[1733818931154,0.0322,97185.0,97181.0,4e-05]
[1733818933357,0.0322,97185.0,97181.0,0.00104]
[1733818948181,0.051431,97182.0,97181.0,0.00104]
[1733818948480,0.051431,97182.0,97181.0,0.001]
[1733818953681,0.18620962,97185.0,97183.0,0.051431]
[1733818953682,0.0322,97185.0,97183.0,0.051431]
[1733818954881,0.00012862,97186.0,97185.0,0.05143]
[1733818955072,0.00012862,97186.0,97185.0,0.41223]
[1733818955278,0.00012862,97186.0,97185.0,0.64034651]
[1733818955581,0.00012862,97186.0,97185.0,0.4573564]
[1733818955784,0.00012862,97186.0,97185.0,0.45735612]
[1733818956081,0.00012862,97186.0,97185.0,0.41234963]
[1733818956279,0.00012862,97186.0,97185.0,0.45735589]
[1733818957475,0.00012862,97186.0,97185.0,0.45835589]
[1733818958473,0.00012862,97186.0,97185.0,0.45735589]
[1733818959569,0.00012862,97186.0,97185.0,0.40592589]
[1733818959981,0.05155762,97186.0,97185.0,0.00011963]
[1733818960278,0.05155762,97186.0,97176.0,0.3608]
[1733818960279,0.05013626,97186.0,97177.0,0.24412001]
[1733818960481,0.051433,97179.0,97178.0,0.04501424]
[1733818960672,0.051433,97179.0,97177.0,0.24412001]
[1733818960878,0.20550559,97179.0,97169.0,0.18382401]
[1733818961080,0.051434,97178.0,97170.0,0.0450169]
[1733818961283,0.051434,97178.0,97171.0,0.04513766]
[1733818961584,0.0303,97177.0,97172.0,0.0450169]
[1733818961776,0.081735,97177.0,97173.0,0.0450169]
[1733818961976,0.081735,97177.0,97174.0,0.0450169]
[1733818962178,0.081735,97177.0,97175.0,0.0450169]
[1733818962381,0.081735,97177.0,97176.0,0.0450169]
[1733818962981,0.081735,97177.0,97176.0,0.04501666]
[1733818963178,0.081735,97177.0,97171.0,0.00512076]
[1733818963380,0.0318,97176.0,97172.0,0.04501689]
[1733818963592,0.0318,97176.0,97173.0,0.04501689]
[1733818963776,0.0318,97176.0,97174.0,0.04501689]
[1733818964086,0.0318,97176.0,97171.0,0.00512076]
[1733818964384,0.20550959,97173.0,97171.0,0.00512076]
[1733818964573,0.15407259,97174.0,97171.0,0.00512076]
[1733818964774,0.3911,97177.0,97175.0,0.051435]
[1733818965379,0.3608,97177.0,97175.0,0.051435]
[1733818965888,0.00012862,97186.0,97176.0,0.43791491]
[1733818966081,0.00012862,97186.0,97181.0,0.18382819]
[1733818966277,0.00012862,97186.0,97185.0,4e-05]
[1733818966479,0.00012862,97186.0,97185.0,0.04505491]
[1733818966980,0.00012862,97186.0,97185.0,4e-05]
[1733818967576,0.00012862,97186.0,97185.0,0.04504941]
[1733818969085,0.00012862,97186.0,97185.0,4e-05]
[1733818969677,0.00012862,97186.0,97185.0,0.04504987]
[1733818970184,0.00012862,97186.0,97185.0,4e-05]
[1733818971673,0.00012862,97186.0,97185.0,0.18386819]
[1733818971880,0.00012862,97186.0,97185.0,0.04504916]
[1733818972086,0.00012862,97186.0,97185.0,4e-05]
[1733818975181,0.00012862,97186.0,97185.0,0.36084]
[1733818975489,0.00012862,97186.0,97185.0,0.58960283]
[1733818976084,0.00012862,97186.0,97185.0,0.40584765]
[1733818976679,0.00012862,97186.0,97185.0,0.04504765]
[1733818976887,0.00012862,97186.0,97185.0,4e-05]
[1733818977692,0.03232862,97186.0,97185.0,4e-05]
[1733818980690,0.03232862,97186.0,97185.0,0.36084]
[1733818983785,0.03232862,97186.0,97185.0,4e-05]
[1733818985394,0.03232862,97186.0,97185.0,0.18379518]
[1733818985582,0.03232862,97186.0,97185.0,4e-05]
[1733818986388,0.03232862,97186.0,97185.0,0.18388593]
[1733818986693,0.03232862,97186.0,97185.0,4e-05]
[1733818988299,0.00012862,97186.0,97185.0,4e-05]
[1733818988597,0.00012862,97186.0,97185.0,0.04505001]
[1733818989095,0.00012862,97186.0,97185.0,0.07525001]
[1733818990297,0.00012862,97186.0,97185.0,0.08565424]
[1733818991699,0.0318,97199.0,97185.0,0.08565424]
[1733818991905,0.0318,97199.0,97198.0,0.412223]
[1733818992100,0.0318,97199.0,97198.0,0.412263]
[1733818992302,0.31,97200.0,97198.0,0.412263]
[1733818992600,0.31,97200.0,97199.0,0.40581001]
[1733818993194,0.31,97200.0,97199.0,0.40585001]
[1733818993401,0.31,97200.0,97199.0,0.36084]
[1733818994010,0.31,97200.0,97199.0,0.40585001]
[1733818994895,0.31,97200.0,97199.0,0.36084]
[1733818996709,0.31,97200.0,97199.0,0.40585001]
[1733818997503,0.31,97200.0,97199.0,0.36084]
[1733818998408,0.31,97200.0,97199.0,0.40585001]
[1733819000408,0.31,97200.0,97199.0,0.43755001]
[1733819000706,0.31,97200.0,97199.0,0.43763051]
[1733819000899,0.12319731,97217.0,97216.0,0.051414]
[1733819001102,0.12319731,97217.0,97216.0,0.773014]
[1733819001301,0.0315,97225.0,97223.0,0.05141]
[1733819001601,0.0315,97225.0,97224.0,0.3608]
[1733819001800,0.01019937,97238.0,97228.0,0.051407]
[1733819002203,0.01019937,97238.0,97228.0,0.09643544]
[1733819002511,0.0315,97243.0,97228.0,0.09643544]
[1733819003314,0.0315,97243.0,97228.0,0.051447]
[1733819006401,0.0315,97243.0,97228.0,0.412247]
[1733819006605,0.063,97245.0,97244.0,0.051399]
[1733819006814,0.063,97245.0,97244.0,0.412199]
[1733819007006,0.063,97245.0,97244.0,0.412239]
[1733819007310,0.0303,97256.0,97244.0,0.72164]
[1733819007506,0.0661,97264.0,97262.0,0.051389]
[1733819007904,0.0661,97264.0,97263.0,4e-05]
[1733819009017,0.0661,97264.0,97263.0,0.36084]
[1733819009311,0.00165,97266.0,97264.0,0.051388]
[1733819009803,0.00165,97266.0,97265.0,4e-05]
[1733819010907,0.0327,97284.0,97265.0,4e-05]
[1733819011108,0.0327,97284.0,97282.0,0.3608]
[1733819011309,0.0327,97284.0,97283.0,4e-05]
[1733819011506,0.0304,97293.0,97283.0,0.05152199]
[1733819011908,0.0304,97293.0,97284.0,4e-05]
[1733819013318,0.0327,97299.0,97284.0,4e-05]
[1733819013513,0.0327,97299.0,97295.0,0.051371]
[1733819013715,0.0327,97299.0,97298.0,0.3608]
[1733819013908,0.0327,97299.0,97298.0,0.36084]
[1733819015212,0.0327,97299.0,97290.0,0.3608]
[1733819015413,0.051372,97295.0,97290.0,0.3608]
[1733819015613,8e-05,97291.0,97290.0,0.3608]
[1733819016113,8e-05,97291.0,97290.0,0.412174]
[1733819018915,8e-05,97291.0,97290.0,0.3608]
[1733819026029,8e-05,97291.0,97290.0,0.2108]
[1733819026217,8e-05,97291.0,97283.0,0.00010399]
[1733819026218,0.051378,97284.0,97283.0,0.00010399]
[1733819026619,8e-05,97284.0,97262.0,0.3608]
[1733819026819,0.051384,97273.0,97266.0,0.06157237]
[1733819027023,0.20196151,97300.0,97272.0,0.3608]
[1733819027228,0.05137,97299.0,97290.0,0.051374]
[1733819027525,0.05137,97299.0,97285.0,0.3608]
[1733819027526,0.11058061,97300.0,97285.0,0.3608]
[1733819027827,0.051372,97295.0,97286.0,0.00011422]
[1733819028927,0.21254212,97300.0,97289.0,0.051375]
[1733819028928,0.11058061,97300.0,97289.0,0.051375]
[1733819029123,0.1,97300.0,97289.0,0.051375]
[1733819029333,0.1,97300.0,97299.0,4e-05]
[1733819029920,0.1319,97300.0,97299.0,4e-05]
[1733819030625,0.1319,97300.0,97286.0,0.00011422]
[1733819030626,0.051372,97296.0,97286.0,0.00011422]
[1733819031024,8e-05,97287.0,97286.0,0.00011422]
[1733819031825,8e-05,97287.0,97285.0,0.3608]
[1733819032020,0.051377,97286.0,97285.0,0.3608]
[1733819032222,0.05138,97281.0,97276.0,0.051382]
[1733819032421,0.0307,97280.0,97276.0,0.051382]
[1733819032624,8e-05,97277.0,97276.0,0.051382]
[1733819033022,8e-05,97277.0,97276.0,0.05150884]
[1733819033426,8e-05,97277.0,97276.0,0.05350884]
[1733819033824,8e-05,97277.0,97276.0,0.05650884]
[1733819036626,8e-05,97277.0,97276.0,0.05950884]
[1733819042233,8e-05,97277.0,97276.0,0.00812684]
[1733819045045,0.09237887,97277.0,97276.0,0.00812684]
[1733819045240,8e-05,97277.0,97276.0,0.00812684]
[1733819046240,0.051461,97277.0,97276.0,0.00812684]
[1733819046447,0.412261,97277.0,97276.0,0.00812684]
[1733819046746,0.17450819,97277.0,97276.0,0.00812684]
[1733819046942,0.051461,97277.0,97276.0,0.00812684]
[1733819047332,0.083861,97277.0,97276.0,0.00812684]
[1733819047536,0.051388,97264.0,97263.0,0.04500988]
[1733819047739,0.051388,97264.0,97263.0,4e-05]
[1733819047937,0.051468,97264.0,97263.0,4e-05]
[1733819048539,0.051468,97264.0,97263.0,0.00014954]
[1733819049942,0.051468,97264.0,97263.0,0.00814954]
[1733819050250,0.20550414,97264.0,97263.0,0.00814954]
[1733819050437,0.20505934,97264.0,97263.0,0.00214954]
[1733819050642,0.20505934,97264.0,97263.0,0.00114954]
[1733819050838,0.20505934,97264.0,97243.0,0.3608]
[1733819050839,0.051398,97246.0,97243.0,0.3608]
[1733819051043,0.051399,97245.0,97243.0,0.3608]
[1733819051845,8e-05,97244.0,97243.0,0.3608]
[1733819052054,8e-05,97244.0,97243.0,0.3608826]
[1733819052451,8e-05,97244.0,97243.0,0.3658826]
[1733819053147,8e-05,97244.0,97243.0,0.3748826]
[1733819053740,0.09215567,97266.0,97243.0,0.3748826]
[1733819054037,0.36148,97267.0,97265.0,4e-05]
[1733819054237,0.3608,97267.0,97265.0,4e-05]
[1733819054437,0.3608,97267.0,97266.0,4e-05]
[1733819056250,0.3911,97267.0,97266.0,4e-05]
[1733819056444,0.4219,97267.0,97266.0,4e-05]
[1733819056751,0.4229,97267.0,97266.0,4e-05]
[1733819057842,0.4219,97267.0,97266.0,0.00404]
[1733819058647,0.4219,97267.0,97266.0,0.00604]
[1733819060051,0.4219,97267.0,97266.0,0.00204]
[1733819060257,0.4219,97267.0,97266.0,0.00604]
[1733819061046,0.3608,97267.0,97266.0,0.00604]
[1733819061344,0.3608,97267.0,97266.0,0.00204]
[1733819061549,0.3608,97267.0,97266.0,0.00604]
[1733819062841,0.3608,97267.0,97266.0,0.00404]
[1733819063047,0.3608,97267.0,97266.0,0.00604]
[1733819063649,0.3608,97267.0,97266.0,4e-05]
[1733819063862,0.3608,97267.0,97266.0,0.00604]
[1733819066256,0.3608,97267.0,97266.0,0.057427]
[1733819067559,0.3608,97267.0,97266.0,0.00204]
[1733819067766,0.3608,97267.0,97266.0,0.00604]
[1733819069260,0.3608,97267.0,97260.0,0.18324996]
[1733819069261,0.051387,97266.0,97260.0,0.18324996]
[1733819069454,0.10196151,97265.0,97249.0,0.18324996]
[1733819069762,0.0303,97266.0,97249.0,0.18324996]
[1733819069763,0.09220634,97256.0,97250.0,0.051395]
[1733819069963,0.3608,97251.0,97249.0,0.18324996]
[1733819070264,8e-05,97250.0,97247.0,0.18324996]
[1733819070761,0.10196151,97253.0,97246.0,0.051397]
[1733819070762,8e-05,97248.0,97246.0,0.051397]
[1733819071461,8e-05,97248.0,97247.0,0.007]
[1733819071669,0.001,97250.0,97247.0,0.007]
[1733819071859,0.001,97250.0,97247.0,0.011]
[1733819072062,0.10196151,97253.0,97249.0,4e-05]
[1733819072369,0.10196151,97253.0,97252.0,4e-05]
[1733819072663,0.412871,97259.0,97252.0,0.04501749]
[1733819072664,0.36148,97259.0,97252.0,0.04501749]
[1733819072865,0.36148,97259.0,97252.0,4e-05]
[1733819072866,0.3608,97259.0,97252.0,4e-05]
[1733819073059,0.3608,97259.0,97248.0,0.18334309]
[1733819073060,0.412191,97259.0,97258.0,4e-05]
[1733819073972,0.53506523,97259.0,97258.0,4e-05]
[1733819074663,0.412191,97259.0,97258.0,4e-05]
[1733819075164,0.412191,97259.0,97258.0,0.00404]
[1733819075670,0.3608,97259.0,97258.0,0.00404]
[1733819077065,0.48394997,97259.0,97258.0,0.00404]
[1733819077266,0.3608,97259.0,97258.0,0.06744]
[1733819077458,0.48394997,97259.0,97258.0,0.06744]
[1733819077665,0.3608,97259.0,97258.0,0.06744]
[1733819080863,0.09238511,97260.0,97258.0,0.06744]
[1733819081080,0.09238511,97260.0,97259.0,0.22847166]
[1733819081365,8e-05,97261.0,97259.0,0.22851166]
[1733819081757,8e-05,97261.0,97260.0,4e-05]
[1733819084371,8e-05,97261.0,97260.0,0.00204]
[1733819084567,8e-05,97261.0,97260.0,0.00604]
[1733819087374,8e-05,97261.0,97260.0,0.05101428]
[1733819088172,8e-05,97261.0,97260.0,0.41181428]
[1733819089372,0.00173555,97261.0,97260.0,0.41181428]
[1733819090371,0.00173555,97261.0,97260.0,0.05101428]
[1733819091574,0.00173555,97261.0,97260.0,0.00604]
[1733819091575,0.09409939,97261.0,97260.0,0.00604]
[1733819092071,0.00173555,97261.0,97260.0,0.00604]
[1733819094379,0.00173555,97261.0,97260.0,0.04701458]
[1733819094576,0.00173555,97261.0,97260.0,0.23445452]
[1733819095177,0.00173555,97261.0,97260.0,0.05101458]
[1733819095879,0.00173555,97261.0,97260.0,0.04901458]
[1733819096182,0.00173555,97261.0,97260.0,0.05101458]
[1733819096587,0.00173555,97261.0,97260.0,0.00604]
[1733819098578,0.00173555,97261.0,97260.0,0.05101401]
[1733819102284,0.00173555,97261.0,97260.0,0.35663454]
[1733819102477,0.00173555,97261.0,97260.0,0.2967679]